[Event "Titled Tuesday Blitz April 19 Late 2022"]
[White "Mitra, Roman C"]
[Black "Saraci, Nderim"]
[WhiteFideId "419540"]
[BlackFideId "6351921"]
[WhiteElo "2174"]
[BlackElo "2553"]
[Result "0-1"]
[Round "04"]
[TimeControl "180+1"]
[Date "2022.04.19"]
[WhiteClock "0:00:02"]
[BlackClock "0:00:06"]

1. c4 {[%clk 0:02:58]}  b6 {[%clk 0:02:58]} 2. Nf3 {[%clk 0:02:56]}  Bb7 {[%clk 0:02:59]} 3. e3 {[%clk 0:02:56]}  g6 {[%clk 0:02:58]} 4. Nc3 {[%clk 0:02:55]}  Bg7 {[%clk 0:02:58]} 5. b3 {[%clk 0:02:56]}  f5 {[%clk 0:02:59]} 6. Bb2 {[%clk 0:02:56]}  Nf6 {[%clk 0:02:59]} 7. g3 {[%clk 0:02:55]}  O-O {[%clk 0:02:59]} 8. Bg2 {[%clk 0:02:55]}  d6 {[%clk 0:03:00]} 9. O-O {[%clk 0:02:55]}  e5 {[%clk 0:03:00]} 10. d3 {[%clk 0:02:55]}  Nbd7 {[%clk 0:02:58]} 11. Qc2 {[%clk 0:02:53]}  Qe7 {[%clk 0:02:56]} 12. b4 {[%clk 0:02:50]}  a5 {[%clk 0:02:55]} 13. a3 {[%clk 0:02:50]}  e4 {[%clk 0:02:54]} 14. Ne1 {[%clk 0:02:45]}  exd3 {[%clk 0:02:54]} 15. Nxd3 {[%clk 0:02:46]}  Bxg2 {[%clk 0:02:54]} 16. Kxg2 {[%clk 0:02:46]}  Qf7 {[%clk 0:02:51]} 17. Nb5 {[%clk 0:02:43]}  Rfc8 {[%clk 0:02:45]} 18. Nf4 {[%clk 0:02:41]}  d5 {[%clk 0:02:28]} 19. c5 {[%clk 0:02:25]}  g5 {[%clk 0:02:20]} 20. Ne2 {[%clk 0:02:16]}  bxc5 {[%clk 0:02:12]} 21. bxc5 {[%clk 0:02:14]}  Rab8 {[%clk 0:02:12]} 22. a4 {[%clk 0:02:10]}  Ne4 {[%clk 0:02:00]} 23. Bxg7 {[%clk 0:02:02]}  Kxg7 {[%clk 0:02:00]} 24. c6 {[%clk 0:02:02]}  Ne5 {[%clk 0:01:43]} 25. Ned4 {[%clk 0:01:31]}  Kg6 {[%clk 0:01:40]} 26. Rae1 {[%clk 0:01:24]}  Rb6 {[%clk 0:01:33]} 27. f3 {[%clk 0:01:21]}  Nd6 {[%clk 0:01:27]} 28. f4 {[%clk 0:01:18]}  Nec4 {[%clk 0:01:17]} 29. fxg5 {[%clk 0:01:14]}  Kxg5 {[%clk 0:01:07]} 30. e4 {[%clk 0:00:56]}  dxe4 {[%clk 0:00:58]} 31. Qc1+ {[%clk 0:00:45]}  Kg6 {[%clk 0:00:55]} 32. Qf4 {[%clk 0:00:29]}  Qd5 {[%clk 0:00:52]} 33. h4 {[%clk 0:00:25]}  h6 {[%clk 0:00:34]} 34. g4 {[%clk 0:00:21]}  Rf8 {[%clk 0:00:25]} 35. gxf5+ {[%clk 0:00:17]}  Kh7 {[%clk 0:00:25]} 36. Kh3 {[%clk 0:00:15]}  Rf7 {[%clk 0:00:18]} 37. Nxd6 {[%clk 0:00:10]}  Nxd6 {[%clk 0:00:18]} 38. Ne6 {[%clk 0:00:09]}  Rxf5 {[%clk 0:00:13]} 39. Nf8+ {[%clk 0:00:02]}  Kg8 {[%clk 0:00:10]} 40. Rg1+ {[%clk 0:00:02]}  Kxf8 {[%clk 0:00:08]} 41. Qxh6+ {[%clk 0:00:01]}  Ke8 {[%clk 0:00:08]} 42. Qh8+ {[%clk 0:00:01]}  Rf8 {[%clk 0:00:07]} 43. Qh7 {[%clk 0:00:02]}  Rb3+ {[%clk 0:00:07]} 44. Kh2 {[%clk 0:00:02]}  Qe5+ {[%clk 0:00:07]} 45. Kh1 {[%clk 0:00:02]}  Qf5 {[%clk 0:00:06]} 0-1


[Site "https://www.chess.com"]

[Event "Titled Tuesday Blitz April 19 Late 2022"]
[White "Nathan, Nitish"]
[Black "Jacobson, Aaron"]
[WhiteFideId "30927870"]
[BlackFideId "2089912"]
[WhiteElo "2271"]
[BlackElo "2265"]
[Result "1-0"]
[Round "04"]
[TimeControl "180+1"]
[Date "2022.04.19"]
[WhiteClock "0:01:41"]
[BlackClock "0:01:21"]

1. d4 {[%clk 0:03:00]}  Nf6 {[%clk 0:02:58]} 2. Bf4 {[%clk 0:03:00]}  g6 {[%clk 0:02:57]} 3. e3 {[%clk 0:03:01]}  Bg7 {[%clk 0:02:58]} 4. Nf3 {[%clk 0:03:01]}  O-O {[%clk 0:02:59]} 5. Be2 {[%clk 0:03:02]}  b6 {[%clk 0:02:59]} 6. h3 {[%clk 0:03:02]}  Bb7 {[%clk 0:02:59]} 7. O-O {[%clk 0:03:02]}  d6 {[%clk 0:03:00]} 8. a4 {[%clk 0:03:03]}  a5 {[%clk 0:03:00]} 9. c4 {[%clk 0:03:03]}  Nbd7 {[%clk 0:03:00]} 10. Nc3 {[%clk 0:03:04]}  Qe8 {[%clk 0:02:57]} 11. Bh2 {[%clk 0:03:00]}  e5 {[%clk 0:02:57]} 12. Re1 {[%clk 0:02:57]}  Qe7 {[%clk 0:02:56]} 13. Qb3 {[%clk 0:02:57]}  Ne4 {[%clk 0:02:49]} 14. Nxe4 {[%clk 0:02:54]}  Bxe4 {[%clk 0:02:50]} 15. Rad1 {[%clk 0:02:54]}  Kh8 {[%clk 0:02:42]} 16. Nd2 {[%clk 0:02:52]}  Bb7 {[%clk 0:02:36]} 17. Bf3 {[%clk 0:02:51]}  e4 {[%clk 0:02:35]} 18. Be2 {[%clk 0:02:50]}  f5 {[%clk 0:02:35]} 19. Nb1 {[%clk 0:02:47]}  g5 {[%clk 0:02:32]} 20. Nc3 {[%clk 0:02:46]}  f4 {[%clk 0:02:33]} 21. Bg4 {[%clk 0:02:44]}  Nf6 {[%clk 0:02:30]} 22. Be2 {[%clk 0:02:40]}  f3 {[%clk 0:02:27]} 23. Bf1 {[%clk 0:02:40]}  g4 {[%clk 0:02:20]} 24. c5 {[%clk 0:02:33]}  Bc8 {[%clk 0:02:04]} 25. cxd6 {[%clk 0:02:30]}  cxd6 {[%clk 0:02:04]} 26. Qxb6 {[%clk 0:02:26]}  Rd8 {[%clk 0:01:57]} 27. Nb5 {[%clk 0:02:18]}  Nd5 {[%clk 0:01:45]} 28. Bxd6 {[%clk 0:02:11]}  Qg5 {[%clk 0:01:31]} 29. Qc6 {[%clk 0:01:55]}  gxh3 {[%clk 0:01:24]} 30. g3 {[%clk 0:01:50]}  h2+ {[%clk 0:01:20]} 31. Kh1 {[%clk 0:01:49]}  Qh5 {[%clk 0:01:21]} 32. Qxa8 {[%clk 0:01:42]}  Bh3 {[%clk 0:01:21]} 33. Qxd8+ {[%clk 0:01:41]} 1-0


[Site "https://www.chess.com"]

[Event "Titled Tuesday Blitz April 19 Late 2022"]
[White "Onslow, Alfie"]
[Black "Ronka, Erik"]
[WhiteFideId "436976"]
[BlackFideId "505080"]
[WhiteElo "1884"]
[BlackElo "2264"]
[Result "0-1"]
[Round "04"]
[TimeControl "180+1"]
[Date "2022.04.19"]
[WhiteClock "0:00:02"]
[BlackClock "0:00:19"]

1. Nf3 {[%clk 0:02:54]}  g6 {[%clk 0:03:00]} 2. c4 {[%clk 0:02:53]}  Bg7 {[%clk 0:03:01]} 3. d4 {[%clk 0:02:50]}  d6 {[%clk 0:03:01]} 4. b3 {[%clk 0:02:51]}  e5 {[%clk 0:02:56]} 5. dxe5 {[%clk 0:02:52]}  dxe5 {[%clk 0:02:54]} 6. Qxd8+ {[%clk 0:02:52]}  Kxd8 {[%clk 0:02:55]} 7. Bb2 {[%clk 0:02:52]}  Nd7 {[%clk 0:02:55]} 8. Nc3 {[%clk 0:02:48]}  c6 {[%clk 0:02:55]} 9. O-O-O {[%clk 0:02:48]}  Kc7 {[%clk 0:02:56]} 10. Ne4 {[%clk 0:02:48]}  Nh6 {[%clk 0:02:47]} 11. h4 {[%clk 0:02:45]}  f6 {[%clk 0:02:43]} 12. h5 {[%clk 0:02:45]}  Nf7 {[%clk 0:02:41]} 13. g4 {[%clk 0:02:30]}  Nf8 {[%clk 0:02:30]} 14. g5 {[%clk 0:02:20]}  fxg5 {[%clk 0:02:10]} 15. h6 {[%clk 0:02:20]}  Nxh6 {[%clk 0:02:07]} 16. Nxe5 {[%clk 0:02:12]}  Ne6 {[%clk 0:01:50]} 17. Bh3 {[%clk 0:01:49]}  Nf5 {[%clk 0:01:49]} 18. Nf7 {[%clk 0:01:11]}  Bxb2+ {[%clk 0:01:46]} 19. Kxb2 {[%clk 0:01:12]}  Rf8 {[%clk 0:01:44]} 20. Nfxg5 {[%clk 0:01:11]}  Nxg5 {[%clk 0:01:37]} 21. Nxg5 {[%clk 0:01:10]}  h5 {[%clk 0:01:35]} 22. e4 {[%clk 0:00:59]}  Ne7 {[%clk 0:01:31]} 23. Bxc8 {[%clk 0:00:55]}  Rxf2+ {[%clk 0:01:31]} 24. Kc3 {[%clk 0:00:49]}  Rxc8 {[%clk 0:01:29]} 25. Ne6+ {[%clk 0:00:47]}  Kb6 {[%clk 0:01:29]} 26. c5+ {[%clk 0:00:39]}  Ka6 {[%clk 0:01:28]} 27. Rd4 {[%clk 0:00:28]}  b5 {[%clk 0:01:20]} 28. Rd7 {[%clk 0:00:22]}  Ng8 {[%clk 0:01:12]} 29. Nc7+ {[%clk 0:00:18]}  Ka5 {[%clk 0:01:11]} 30. b4+ {[%clk 0:00:09]}  Ka4 {[%clk 0:01:11]} 31. Ne6 {[%clk 0:00:06]}  Rf3+ {[%clk 0:01:11]} 32. Kd4 {[%clk 0:00:06]}  Ra8 {[%clk 0:00:21]} 33. Nc7 {[%clk 0:00:05]}  Nf6 {[%clk 0:00:20]} 34. Rf7 {[%clk 0:00:04]}  Rd8+ {[%clk 0:00:21]} 35. Ke5 {[%clk 0:00:04]}  Ng4+ {[%clk 0:00:21]} 36. Ke6 {[%clk 0:00:04]}  Rxf7 {[%clk 0:00:22]} 37. Kxf7 {[%clk 0:00:04]}  Kxb4 {[%clk 0:00:22]} 38. Ne6 {[%clk 0:00:03]}  Rd3 {[%clk 0:00:20]} 39. Kxg6 {[%clk 0:00:03]}  Ne5+ {[%clk 0:00:20]} 40. Kxh5 {[%clk 0:00:03]}  Nc4 {[%clk 0:00:19]} 41. Kg5 {[%clk 0:00:02]}  Re3 {[%clk 0:00:19]} 0-1


[Site "https://www.chess.com"]

[Event "Titled Tuesday Blitz April 19 Late 2022"]
[White "Ozdemir, Serhan Berat"]
[Black "Sowa, Ryan"]
[WhiteFideId "6374611"]
[BlackFideId "30901693"]
[WhiteElo "1920"]
[BlackElo "2619"]
[Result "0-1"]
[Round "04"]
[TimeControl "180+1"]
[Date "2022.04.19"]
[WhiteClock "0:00:01"]
[BlackClock "0:00:42"]

1. e4 {[%clk 0:02:58]}  d6 {[%clk 0:02:59]} 2. d4 {[%clk 0:02:56]}  Nf6 {[%clk 0:02:59]} 3. Nc3 {[%clk 0:02:52]}  c6 {[%clk 0:03:00]} 4. Nf3 {[%clk 0:02:51]}  Bg4 {[%clk 0:03:00]} 5. Be3 {[%clk 0:02:49]}  e6 {[%clk 0:03:00]} 6. h3 {[%clk 0:02:40]}  Bh5 {[%clk 0:03:00]} 7. Be2 {[%clk 0:02:33]}  Be7 {[%clk 0:02:59]} 8. O-O {[%clk 0:02:33]}  d5 {[%clk 0:03:00]} 9. e5 {[%clk 0:02:31]}  Nfd7 {[%clk 0:03:00]} 10. Nh2 {[%clk 0:02:05]}  Bg6 {[%clk 0:03:00]} 11. f4 {[%clk 0:01:54]}  c5 {[%clk 0:03:00]} 12. Nf3 {[%clk 0:01:40]}  Nc6 {[%clk 0:02:39]} 13. Qd2 {[%clk 0:01:17]}  O-O {[%clk 0:02:05]} 14. g4 {[%clk 0:01:14]}  f6 {[%clk 0:02:05]} 15. f5 {[%clk 0:00:35]}  exf5 {[%clk 0:02:02]} 16. Nxd5 {[%clk 0:00:34]}  fxe5 {[%clk 0:02:03]} 17. Nxe7+ {[%clk 0:00:20]}  Qxe7 {[%clk 0:02:02]} 18. dxe5 {[%clk 0:00:20]}  Ndxe5 {[%clk 0:02:03]} 19. Qd5+ {[%clk 0:00:19]}  Kh8 {[%clk 0:02:01]} 20. Bxc5 {[%clk 0:00:18]}  Qf7 {[%clk 0:01:47]} 21. Qxf7 {[%clk 0:00:10]}  Rxf7 {[%clk 0:01:48]} 22. Ng5 {[%clk 0:00:09]}  Rf6 {[%clk 0:01:41]} 23. Rad1 {[%clk 0:00:09]}  h6 {[%clk 0:01:35]} 24. Nf3 {[%clk 0:00:06]}  fxg4 {[%clk 0:01:31]} 25. Nxe5 {[%clk 0:00:06]}  Rxf1+ {[%clk 0:01:32]} 26. Rxf1 {[%clk 0:00:05]}  Nxe5 {[%clk 0:01:33]} 27. hxg4 {[%clk 0:00:06]}  Bxc2 {[%clk 0:01:33]} 28. Bd4 {[%clk 0:00:05]}  Re8 {[%clk 0:01:31]} 29. Bb5 {[%clk 0:00:05]}  Re7 {[%clk 0:01:13]} 30. Rf8+ {[%clk 0:00:05]}  Kh7 {[%clk 0:01:14]} 31. Kg2 {[%clk 0:00:04]}  Nxg4 {[%clk 0:01:00]} 32. Bc4 {[%clk 0:00:02]}  Ne3+ {[%clk 0:00:40]} 33. Bxe3 {[%clk 0:00:02]}  Rxe3 {[%clk 0:00:41]} 34. Rf7 {[%clk 0:00:02]}  Kg6 {[%clk 0:00:42]} 35. Rxb7 {[%clk 0:00:01]}  Be4+ {[%clk 0:00:42]} 0-1


[Site "https://www.chess.com"]

[Event "Titled Tuesday Blitz April 19 Late 2022"]
[White "Palacio,Igor Da Paz"]
[Black "Miszler, Levente"]
[WhiteFideId "2121140"]
[BlackFideId "763276"]
[WhiteElo "2144"]
[BlackElo "1966"]
[Result "0-1"]
[Round "04"]
[TimeControl "180+1"]
[Date "2022.04.19"]
[WhiteClock "0:00:01"]
[BlackClock "0:02:21"]

1. e4 {[%clk 0:03:00]}  e6 {[%clk 0:02:58]} 2. Nc3 {[%clk 0:03:00]}  a6 {[%clk 0:02:55]} 3. g3 {[%clk 0:02:59]}  b5 {[%clk 0:02:55]} 4. Bg2 {[%clk 0:02:58]}  Bb7 {[%clk 0:02:55]} 5. a3 {[%clk 0:02:54]}  g6 {[%clk 0:02:54]} 6. Nge2 {[%clk 0:02:47]}  Bg7 {[%clk 0:02:54]} 7. O-O {[%clk 0:02:47]}  Ne7 {[%clk 0:02:54]} 8. d3 {[%clk 0:02:45]}  O-O {[%clk 0:02:54]} 9. Be3 {[%clk 0:02:40]}  d6 {[%clk 0:02:53]} 10. d4 {[%clk 0:02:35]}  c5 {[%clk 0:02:53]} 11. dxc5 {[%clk 0:02:35]}  dxc5 {[%clk 0:02:53]} 12. Qxd8 {[%clk 0:02:19]}  Rxd8 {[%clk 0:02:54]} 13. Bxc5 {[%clk 0:02:19]}  Nec6 {[%clk 0:02:53]} 14. Rad1 {[%clk 0:02:10]}  Nd7 {[%clk 0:02:53]} 15. Be3 {[%clk 0:02:03]}  Nde5 {[%clk 0:02:52]} 16. b3 {[%clk 0:02:00]}  Ng4 {[%clk 0:02:50]} 17. Bb6 {[%clk 0:01:48]}  Rdc8 {[%clk 0:02:48]} 18. h3 {[%clk 0:01:44]}  Nf6 {[%clk 0:02:45]} 19. f4 {[%clk 0:01:36]}  b4 {[%clk 0:02:42]} 20. Nb1 {[%clk 0:01:24]}  bxa3 {[%clk 0:02:35]} 21. Nxa3 {[%clk 0:01:25]}  Nb4 {[%clk 0:02:35]} 22. c3 {[%clk 0:01:01]}  Na2 {[%clk 0:02:27]} 23. Bd4 {[%clk 0:00:51]}  Nxe4 {[%clk 0:02:24]} 24. Bxg7 {[%clk 0:00:21]}  Kxg7 {[%clk 0:02:25]} 25. Bxe4 {[%clk 0:00:03]}  Bxe4 {[%clk 0:02:26]} 26. Nb1 {[%clk 0:00:02]}  Bxb1 {[%clk 0:02:25]} 27. Rxb1 {[%clk 0:00:02]}  Nxc3 {[%clk 0:02:26]} 28. Nxc3 {[%clk 0:00:01]}  Rxc3 {[%clk 0:02:27]} 29. Kg2 {[%clk 0:00:01]}  Rb8 {[%clk 0:02:25]} 30. Rf3 {[%clk 0:00:01]}  Rc2+ {[%clk 0:02:21]} 31. Rf2 {[%clk 0:00:01]}  Rc3 {[%clk 0:02:20]} 32. Rf3 {[%clk 0:00:01]}  Rxf3 {[%clk 0:02:20]} 33. Kxf3 {[%clk 0:00:01]}  a5 {[%clk 0:02:21]} 0-1


[Site "https://www.chess.com"]

[Event "Titled Tuesday Blitz April 19 Late 2022"]
[White "Piliczewski, Bogusz"]
[Black "Vujic, Mihailo"]
[WhiteFideId "1104144"]
[BlackFideId "918873"]
[WhiteElo "1896"]
[BlackElo "2256"]
[Result "0-1"]
[Round "04"]
[TimeControl "180+1"]
[Date "2022.04.19"]
[WhiteClock "0:00:01"]
[BlackClock "0:01:39"]

1. d4 {[%clk 0:03:00]}  d5 {[%clk 0:02:59]} 2. Nf3 {[%clk 0:03:00]}  Nc6 {[%clk 0:02:58]} 3. Bf4 {[%clk 0:03:00]}  Bg4 {[%clk 0:02:58]} 4. e3 {[%clk 0:02:59]}  f6 {[%clk 0:02:58]} 5. Be2 {[%clk 0:02:55]}  e5 {[%clk 0:02:57]} 6. dxe5 {[%clk 0:02:51]}  Bxf3 {[%clk 0:02:56]} 7. Bxf3 {[%clk 0:02:38]}  fxe5 {[%clk 0:02:57]} 8. Bg3 {[%clk 0:02:20]}  Nf6 {[%clk 0:02:57]} 9. O-O {[%clk 0:02:14]}  e4 {[%clk 0:02:56]} 10. Be2 {[%clk 0:02:12]}  Bd6 {[%clk 0:02:56]} 11. Bxd6 {[%clk 0:01:58]}  Qxd6 {[%clk 0:02:57]} 12. c4 {[%clk 0:01:58]}  d4 {[%clk 0:02:57]} 13. exd4 {[%clk 0:01:53]}  Qxd4 {[%clk 0:02:58]} 14. Qxd4 {[%clk 0:01:40]}  Nxd4 {[%clk 0:02:59]} 15. Nc3 {[%clk 0:01:37]}  O-O-O {[%clk 0:02:57]} 16. Rad1 {[%clk 0:01:29]}  Rhe8 {[%clk 0:02:54]} 17. Rfe1 {[%clk 0:01:22]}  e3 {[%clk 0:02:48]} 18. fxe3 {[%clk 0:01:18]}  Rxe3 {[%clk 0:02:38]} 19. Kf2 {[%clk 0:00:58]}  Re5 {[%clk 0:02:22]} 20. Bf3 {[%clk 0:00:51]}  Nxf3 {[%clk 0:02:07]} 21. gxf3 {[%clk 0:00:51]}  Rxe1 {[%clk 0:02:02]} 22. Rxd8+ {[%clk 0:00:49]}  Kxd8 {[%clk 0:02:02]} 23. Kxe1 {[%clk 0:00:49]}  Ke7 {[%clk 0:01:59]} 24. Kf2 {[%clk 0:00:48]}  Ke6 {[%clk 0:01:58]} 25. Ke3 {[%clk 0:00:46]}  Kf5 {[%clk 0:01:56]} 26. Ne4 {[%clk 0:00:41]}  Nxe4 {[%clk 0:01:56]} 27. fxe4+ {[%clk 0:00:40]}  Ke5 {[%clk 0:01:56]} 28. c5 {[%clk 0:00:32]}  g5 {[%clk 0:01:54]} 29. h3 {[%clk 0:00:26]}  h5 {[%clk 0:01:53]} 30. b4 {[%clk 0:00:23]}  c6 {[%clk 0:01:52]} 31. a3 {[%clk 0:00:22]}  g4 {[%clk 0:01:51]} 32. h4 {[%clk 0:00:17]}  g3 {[%clk 0:01:37]} 33. Kf3 {[%clk 0:00:14]}  g2 {[%clk 0:01:38]} 34. Kxg2 {[%clk 0:00:14]}  Kxe4 {[%clk 0:01:39]} 35. Kg3 {[%clk 0:00:12]}  Ke3 {[%clk 0:01:37]} 36. a4 {[%clk 0:00:11]}  a6 {[%clk 0:01:36]} 37. Kg2 {[%clk 0:00:08]}  Kf4 {[%clk 0:01:35]} 38. Kf2 {[%clk 0:00:07]}  Kg4 {[%clk 0:01:35]} 39. Ke3 {[%clk 0:00:06]}  Kxh4 {[%clk 0:01:34]} 40. Kf4 {[%clk 0:00:06]}  Kh3 {[%clk 0:01:34]} 41. Kf3 {[%clk 0:00:06]}  h4 {[%clk 0:01:34]} 42. a5 {[%clk 0:00:05]}  Kh2 {[%clk 0:01:34]} 43. Kf2 {[%clk 0:00:05]}  h3 {[%clk 0:01:33]} 44. Kf1 {[%clk 0:00:03]}  Kg3 {[%clk 0:01:33]} 45. Kg1 {[%clk 0:00:02]}  Kf3 {[%clk 0:01:33]} 46. Kh2 {[%clk 0:00:02]}  Ke4 {[%clk 0:01:34]} 47. Kxh3 {[%clk 0:00:02]}  Kd4 {[%clk 0:01:34]} 48. Kg4 {[%clk 0:00:03]}  Kc4 {[%clk 0:01:35]} 49. Kf5 {[%clk 0:00:03]}  Kxb4 {[%clk 0:01:35]} 50. Ke6 {[%clk 0:00:03]}  Kxc5 {[%clk 0:01:36]} 51. Kd7 {[%clk 0:00:03]}  Kb5 {[%clk 0:01:37]} 52. Kc7 {[%clk 0:00:03]}  c5 {[%clk 0:01:37]} 53. Kxb7 {[%clk 0:00:03]}  c4 {[%clk 0:01:38]} 54. Kc7 {[%clk 0:00:01]}  c3 {[%clk 0:01:39]} 0-1


[Site "https://www.chess.com"]

[Event "Titled Tuesday Blitz April 19 Late 2022"]
[White "Potapova, Margarita"]
[Black "Zherebtsova, Alexandra"]
[WhiteFideId "14126869"]
[BlackFideId "24129518"]
[WhiteElo "2216"]
[BlackElo "2025"]
[Result "1-0"]
[Round "04"]
[TimeControl "180+1"]
[Date "2022.04.19"]
[WhiteClock "0:01:23"]
[BlackClock "0:00:02"]

1. d4 {[%clk 0:03:00]}  d5 {[%clk 0:02:41]} 2. c4 {[%clk 0:02:58]}  e6 {[%clk 0:02:33]} 3. Nf3 {[%clk 0:02:57]}  Nf6 {[%clk 0:02:27]} 4. Nc3 {[%clk 0:02:53]}  Be7 {[%clk 0:02:24]} 5. Bf4 {[%clk 0:02:52]}  b6 {[%clk 0:02:23]} 6. e3 {[%clk 0:02:50]}  Bb7 {[%clk 0:02:22]} 7. Bg3 {[%clk 0:02:29]}  O-O {[%clk 0:02:03]} 8. cxd5 {[%clk 0:02:29]}  Nxd5 {[%clk 0:01:59]} 9. Bd3 {[%clk 0:02:29]}  Nd7 {[%clk 0:01:22]} 10. O-O {[%clk 0:02:21]}  c5 {[%clk 0:01:21]} 11. Nxd5 {[%clk 0:02:16]}  Bxd5 {[%clk 0:01:19]} 12. e4 {[%clk 0:02:17]}  Bb7 {[%clk 0:01:18]} 13. d5 {[%clk 0:02:17]}  exd5 {[%clk 0:01:16]} 14. exd5 {[%clk 0:02:18]}  Bf6 {[%clk 0:00:43]} 15. Rb1 {[%clk 0:02:06]}  Re8 {[%clk 0:00:34]} 16. Bb5 {[%clk 0:02:00]}  Rc8 {[%clk 0:00:25]} 17. Qa4 {[%clk 0:02:00]}  Nf8 {[%clk 0:00:10]} 18. Bxe8 {[%clk 0:01:58]}  Qxe8 {[%clk 0:00:11]} 19. Qxe8 {[%clk 0:01:54]}  Rxe8 {[%clk 0:00:11]} 20. d6 {[%clk 0:01:52]}  Rd8 {[%clk 0:00:09]} 21. b3 {[%clk 0:01:46]}  Ne6 {[%clk 0:00:08]} 22. Rbd1 {[%clk 0:01:46]}  Nd4 {[%clk 0:00:07]} 23. Nxd4 {[%clk 0:01:43]}  Bxd4 {[%clk 0:00:08]} 24. Rfe1 {[%clk 0:01:40]}  Bc6 {[%clk 0:00:07]} 25. Re7 {[%clk 0:01:39]}  a5 {[%clk 0:00:07]} 26. Rc7 {[%clk 0:01:39]}  Bb5 {[%clk 0:00:06]} 27. a4 {[%clk 0:01:37]}  Ba6 {[%clk 0:00:05]} 28. Re1 {[%clk 0:01:35]}  Kf8 {[%clk 0:00:05]} 29. Ree7 {[%clk 0:01:34]}  Bf6 {[%clk 0:00:03]} 30. Rxf7+ {[%clk 0:01:34]}  Kg8 {[%clk 0:00:03]} 31. Rfd7 {[%clk 0:01:34]}  Re8 {[%clk 0:00:03]} 32. h4 {[%clk 0:01:33]}  Re1+ {[%clk 0:00:02]} 33. Kh2 {[%clk 0:01:33]}  h5 {[%clk 0:00:02]} 34. Ra7 {[%clk 0:01:28]}  Bd3 {[%clk 0:00:01]} 35. Rdc7 {[%clk 0:01:24]}  Bc2 {[%clk 0:00:01]} 36. d7 {[%clk 0:01:24]}  Rd1 {[%clk 0:00:02]} 37. Rc6 {[%clk 0:01:23]}  Kh7 {[%clk 0:00:01]} 38. Rd6 {[%clk 0:01:22]}  Rxd6 {[%clk 0:00:01]} 39. Bxd6 {[%clk 0:01:23]}  Bxb3 {[%clk 0:00:01]} 40. Bc7 {[%clk 0:01:21]}  Bxa4 {[%clk 0:00:01]} 41. d8=Q {[%clk 0:01:22]}  Bxd8 {[%clk 0:00:01]} 42. Bxd8 {[%clk 0:01:23]}  c4 {[%clk 0:00:01]} 43. Bxb6 {[%clk 0:01:22]}  c3 {[%clk 0:00:01]} 44. Rc7 {[%clk 0:01:23]}  c2 {[%clk 0:00:02]} 45. Bxa5 {[%clk 0:01:23]} 1-0


[Site "https://www.chess.com"]

[Event "Titled Tuesday Blitz April 19 Late 2022"]
[White "Rasulov, Vugar"]
[Black "Martinez Alcantara, Jose Eduardo"]
[WhiteFideId "13402390"]
[BlackFideId "3805662"]
[WhiteElo "2560"]
[BlackElo "2690"]
[Result "0-1"]
[Round "04"]
[TimeControl "180+1"]
[Date "2022.04.19"]
[WhiteClock "0:00:04"]
[BlackClock "0:00:08"]

1. d4 {[%clk 0:03:00]}  Nf6 {[%clk 0:02:59]} 2. c4 {[%clk 0:03:01]}  e6 {[%clk 0:03:00]} 3. Nf3 {[%clk 0:03:01]}  Bb4+ {[%clk 0:03:00]} 4. Bd2 {[%clk 0:03:00]}  Qe7 {[%clk 0:03:00]} 5. g3 {[%clk 0:02:59]}  Bxd2+ {[%clk 0:03:01]} 6. Qxd2 {[%clk 0:02:59]}  Nc6 {[%clk 0:03:01]} 7. Nc3 {[%clk 0:02:57]}  d5 {[%clk 0:03:02]} 8. Ne5 {[%clk 0:02:34]}  O-O {[%clk 0:03:01]} 9. Bg2 {[%clk 0:02:33]}  dxc4 {[%clk 0:03:02]} 10. Nxc6 {[%clk 0:02:24]}  bxc6 {[%clk 0:03:03]} 11. O-O {[%clk 0:02:25]}  Rb8 {[%clk 0:03:01]} 12. Rfd1 {[%clk 0:02:23]}  Rd8 {[%clk 0:03:01]} 13. Qc2 {[%clk 0:02:23]}  Ba6 {[%clk 0:02:33]} 14. Na4 {[%clk 0:02:07]}  Nd7 {[%clk 0:01:20]} 15. e3 {[%clk 0:02:01]}  c5 {[%clk 0:01:14]} 16. h4 {[%clk 0:01:46]}  h6 {[%clk 0:01:12]} 17. Rd2 {[%clk 0:01:21]}  cxd4 {[%clk 0:01:01]} 18. Rxd4 {[%clk 0:01:22]}  Ne5 {[%clk 0:00:56]} 19. Rad1 {[%clk 0:01:13]}  Nd3 {[%clk 0:00:55]} 20. Rxd8+ {[%clk 0:00:51]}  Rxd8 {[%clk 0:00:56]} 21. Qd2 {[%clk 0:00:51]}  Rd6 {[%clk 0:00:35]} 22. Qa5 {[%clk 0:00:48]}  Qd7 {[%clk 0:00:20]} 23. Bf1 {[%clk 0:00:38]}  g6 {[%clk 0:00:19]} 24. h5 {[%clk 0:00:30]}  g5 {[%clk 0:00:17]} 25. b4 {[%clk 0:00:21]}  Bb7 {[%clk 0:00:09]} 26. Nc3 {[%clk 0:00:10]}  Qc6 {[%clk 0:00:06]} 27. e4 {[%clk 0:00:10]}  Qb6 {[%clk 0:00:06]} 28. Qxb6 {[%clk 0:00:09]}  axb6 {[%clk 0:00:06]} 29. a3 {[%clk 0:00:09]}  Rd7 {[%clk 0:00:06]} 30. f3 {[%clk 0:00:09]}  f5 {[%clk 0:00:06]} 31. Bxd3 {[%clk 0:00:09]}  cxd3 {[%clk 0:00:06]} 32. Kf2 {[%clk 0:00:10]}  f4 {[%clk 0:00:07]} 33. gxf4 {[%clk 0:00:09]}  gxf4 {[%clk 0:00:07]} 34. Rd2 {[%clk 0:00:07]}  c5 {[%clk 0:00:08]} 35. Na4 {[%clk 0:00:06]}  c4 {[%clk 0:00:07]} 36. Nc3 {[%clk 0:00:04]}  Rd8 {[%clk 0:00:04]} 37. a4 {[%clk 0:00:05]}  Kf7 {[%clk 0:00:04]} 38. Ke1 {[%clk 0:00:05]}  Kf6 {[%clk 0:00:05]} 39. Rg2 {[%clk 0:00:05]}  Ke5 {[%clk 0:00:06]} 40. Kd2 {[%clk 0:00:06]}  Bc6 {[%clk 0:00:04]} 41. Rg6 {[%clk 0:00:05]}  Bd7 {[%clk 0:00:03]} 42. Rxh6 {[%clk 0:00:04]}  Rg8 {[%clk 0:00:03]} 43. Rg6 {[%clk 0:00:05]}  Rh8 {[%clk 0:00:03]} 44. Rg5+ {[%clk 0:00:04]}  Kf6 {[%clk 0:00:04]} 45. Rg6+ {[%clk 0:00:04]}  Kf7 {[%clk 0:00:04]} 46. Rg5 {[%clk 0:00:05]}  Kf6 {[%clk 0:00:04]} 47. Rg6+ {[%clk 0:00:05]}  Ke7 {[%clk 0:00:04]} 48. Rg7+ {[%clk 0:00:04]}  Kd6 {[%clk 0:00:04]} 49. Rg5 {[%clk 0:00:05]}  Be8 {[%clk 0:00:05]} 50. a5 {[%clk 0:00:04]}  bxa5 {[%clk 0:00:05]} 51. bxa5 {[%clk 0:00:05]}  Bxh5 {[%clk 0:00:05]} 52. Nb5+ {[%clk 0:00:05]}  Ke7 {[%clk 0:00:04]} 53. e5 {[%clk 0:00:05]}  Bxf3 {[%clk 0:00:05]} 54. Nd4 {[%clk 0:00:03]}  Bd5 {[%clk 0:00:05]} 55. Rg7+ {[%clk 0:00:03]}  Kf8 {[%clk 0:00:05]} 56. Rg4 {[%clk 0:00:02]}  Rh2+ {[%clk 0:00:05]} 57. Kc3 {[%clk 0:00:03]}  d2 {[%clk 0:00:06]} 58. Rxf4+ {[%clk 0:00:04]}  Ke8 {[%clk 0:00:05]} 59. Rf1 {[%clk 0:00:05]}  Rh3+ {[%clk 0:00:05]} 60. Kc2 {[%clk 0:00:02]}  Be4+ {[%clk 0:00:05]} 61. Kxd2 {[%clk 0:00:02]}  Rd3+ {[%clk 0:00:06]} 62. Ke2 {[%clk 0:00:03]}  Rxd4 {[%clk 0:00:06]} 63. Ke3 {[%clk 0:00:04]}  Bd3 {[%clk 0:00:06]} 64. Kxd4 {[%clk 0:00:02]}  Bxf1 {[%clk 0:00:06]} 65. a6 {[%clk 0:00:03]}  Kd7 {[%clk 0:00:06]} 66. a7 {[%clk 0:00:03]}  Bg2 {[%clk 0:00:07]} 67. Kxc4 {[%clk 0:00:04]}  Kc7 {[%clk 0:00:07]} 68. Kc5 {[%clk 0:00:04]}  Kb7 {[%clk 0:00:07]} 69. Kd6 {[%clk 0:00:04]}  Bd5 {[%clk 0:00:08]} 0-1


[Site "https://www.chess.com"]